Cogmind - Beta 10.2 @@@ ROGUE MODE // 2021.06.11 @ 18:09:45 Player: Sanctumkeeper Result: Destroyed by as-71797 with Assembled Blade Performance ------------- Evolutions (0) 0 Regions Visited (4) 800 Robots Destroyed (34) 170 Value Destroyed (839) 839 Prototype IDs (0) 0 Alien Tech Used (0) 0 Bonus (5) 5 TOTAL SCORE: 1814 Bonus ------- Follower Combat Kills 21 Friendly Fire -16 Cogmind --------- Core Integrity 0/250 Matter 206/300 Energy 100/100 System Corruption 0% Temperature Cool (0) Movement Treading (160) Location -9/Mines Parts ------- > --- POWER (1) -------- (None) > --- PROPULSION (2) --- Light Treads Light Treads > --- UTILITY (2) ------ Large Storage Unit Large Storage Unit > --- WEAPON (2) ------- Rocket Launcher > --- INVENTORY (16) --- Light Nuclear Core Light Treads Improved Treads Improved Treads Improved Treads Large Storage Unit Hacking Suite Hacking Suite Sensor Drone Bay EM Pulse Gun Beamcaster Light Assault Rifle Light Assault Rifle Peak State ------------ > --- POWER ------------ Light Nuclear Core > --- PROPULSION ------- Light Treads Improved Treads > --- UTILITY ---------- Large Storage Unit Large Storage Unit > --- WEAPON ----------- Assault Rifle Light Assault Rifle > --- INVENTORY -------- Light Nuclear Core Light Treads Light Treads Improved Treads Improved Treads Improved Treads Medium Storage Unit Hacking Suite Hacking Suite Sensor Drone Bay EM Pulse Gun Beamcaster Light Assault Rifle Light Assault Rifle Light Assault Rifle Grenade Launcher [Rating: 13] Favorites ----------- Power Light Nuclear Core Engine Improved Ion Engine Power Core Light Nuclear Core Propulsion Light Treads Treads Light Treads Utility Large Storage Unit Device Heat Sink Storage Large Storage Unit Weapon Assault Rifle Ballistic Gun Assault Rifle Launcher Grenade Launcher Build | -11 -10 -10 -10 -9 ------- Run | Scr Mat Min Exi Min Slots Evolved . | . . . . . Power . | . . . . . Propulsion . | . . . . . Utility . | . . . . . Weapon . | . . . . . Parts Attached 36 | 6 14 4 1 11 Power 7 | 1 3 1 . 2 Engine 4 | 1 3 . . . Core 3 | . . 1 . 2 Reactor . | . . . . . Propulsion 9 | 2 3 1 . 3 Treads 9 | 2 3 1 . 3 Leg . | . . . . . Wheel . | . . . . . Hover . | . . . . . Flight . | . . . . . Utility 8 | 1 6 . 1 . Device 1 | . 1 . . . Storage 7 | 1 5 . 1 . Processor . | . . . . . Hackware . | . . . . . Protection . | . . . . . Artifact . | . . . . . Weapon 12 | 2 2 2 . 6 Energy Gun . | . . . . . Energy Cannon . | . . . . . Ballistic Gun 8 | 2 2 1 . 3 Ballistic Cannon . | . . . . . Launcher 4 | . . 1 . 3 Special Weapon . | . . . . . Impact Weapon . | . . . . . Slashing Weapon . | . . . . . Piercing Weapon . | . . . . . Special Melee Weapon . | . . . . . Unidentified Prototypes . | . . . . . Parts Lost 8 | . . . . 8 Power 2 | . . . . 2 Propulsion 2 | . . . . 2 Utility . | . . . . . Weapon 4 | . . . . 4 Highest Loss Streak 3 | . . . . 3 Average Slot Usage (%) 98 | . 97 100 100 94 Engine 6 | . 14 5 . . Core 7 | . . 8 14 13 Treads 28 | . 28 28 28 28 Storage 26 | . 24 28 28 28 Ballistic Gun 26 | . 27 27 28 21 Naked Turns . | . . . . . Heaviest Build 44 | 11 42 44 40 44 Greatest Support 43 | 40 43 43 43 43 Greatest Overweight (x) 1 | 1 . 1 . 1 Average Overweight (x) . | . . . . . Largest Inventory Capacity 16 | 6 16 16 16 16 Average Capacity 14 | 5 10 16 16 16 Most Carried 16 | 4 15 16 16 16 Average Carried 13 | 2 9 15 16 13 Final Capacity 16 | 6 16 16 16 16 Final Carried 16 | 4 15 16 16 13 Class Distribution -------------------- 95% | Mutant 4% | Scavenger-Mutant Dominant Class ---------------- Mutant | -10/Materials Mutant | -10/Mines Mutant | -10/Exiles Mutant | -9/Mines Resources | -11 -10 -10 -10 -9 ----------- Run | Scr Mat Min Exi Min Matter Collected 910 | 220 415 150 . 125 Remotely . | . . . . . Salvage Created 923 | . 506 179 . 238 Parts 63 | . 40 12 . 11 Haulers Intercepted 1 | . 1 . . . Recyclers Shooed 2 | . . 1 . 1 Parts Field Recycled . | . . . . . Retrieved Matter . | . . . . . Parts Self-Destructed . | . . . . . Prevented . | . . . . . Kills | -11 -10 -10 -10 -9 ------- Run | Scr Mat Min Exi Min Combat Hostiles Destroyed 40 | . 15 7 . 18 Guns 25 | . 15 4 . 6 AOE 15 | . . 3 . 12 Classes Destroyed 6 | . 5 . . 1 Worker 2 | . 1 . . 1 Hauler 1 | . 1 . . . Operator 3 | . 3 . . . Swarmer 10 | . 6 3 . 1 Grunt 18 | . 9 4 . 5 Assembled 12 | . . . . 12 Best Kill Streak 12 | . 4 3 . 12 Combat Bots Only 12 | . 4 3 . 12 Max Kills in Single Turn 4 | . 1 1 . 4 Gunslinging . | . . . . . Exploded 4 | . . 1 . 4 Melee . | . . . . . Uniques/NPCs Destroyed . | . . . . . Combat | -11 -10 -10 -10 -9 -------- Run | Scr Mat Min Exi Min Damage Taken 1430 | . 441 311 . 678 Core 253 | . 82 36 . 135 Absorbed by Shields . | . . . . . Core Remaining (%) 100 | 100 . . . . Volleys Fired 112 | . 48 24 . 40 Largest 2 | . 2 2 . 2 Hottest 63 | . 40 40 . 63 Shots Fired 203 | . 96 42 . 65 Gun 189 | . 96 36 . 57 Cannon . | . . . . . Launcher 14 | . . 6 . 8 Special . | . . . . . Kinetic 189 | . 96 36 . 57 Thermal . | . . . . . Explosive 14 | . . 6 . 8 Electromagnetic . | . . . . . Robot Hit Streak 13 | . 10 5 . 13 Robot Miss Streak 3 | . 3 3 . 2 Penetration Max . | . . . . . Secondary Targets 3 | . 2 1 . . Max Gunslinging Chain 1 | . 1 1 . . Shots Hit Robots 141 | . 65 27 . 49 Core Hits 94 | . 32 14 . 48 Critical Hits . | . . . . . Critical Kills . | . . . . . Critical Parts Destroyed . | . . . . . Melee Attacks . | . . . . . Impact . | . . . . . Slashing . | . . . . . Piercing . | . . . . . Sneak Attacks . | . . . . . Combat Hostiles . | . . . . . Follow-up Attacks . | . . . . . Damage Inflicted 2611 | . 715 548 . 1348 Guns 1383 | . 701 278 . 404 Cannons . | . . . . . Explosions 1174 | . . 255 . 919 Melee . | . . . . . Ramming 54 | . 14 15 . 25 Kinetic 1383 | . 701 278 . 404 Thermal . | . . . . . Explosive 1174 | . . 255 . 919 Electromagnetic . | . . . . . Impact . | . . . . . Slashing . | . . . . . Piercing . | . . . . . Highest Corruption . | . . . . . Average Corruption . | . . . . . Corruption Purged . | . . . . . Overload Shots . | . . . . . Overflow Damage 50 | . . 16 . 34 Projectiles . | . . . . . Explosions 50 | . . 16 . 34 Melee . | . . . . . Knockbacks 1 | . . 1 . . Impact 1 | . . 1 . . Kinetic . | . . . . . Secondary . | . . . . . Self-Inflicted Damage 10 | . . 10 . . Shots 1 | . . 1 . . Rammed 16 | . 5 7 . 4 Targets Rammed 17 | . 6 7 . 4 Kicked . | . . . . . Crushed 1 | . 1 . . . Highest Temperature 43 | . 22 28 . 43 Average Temperature 9 | . 4 8 . 12 Received Heat Transfer 597 | . 195 132 . 270 Siege Activations . | . . . . . Robots Corrupted . | . . . . . Combat Hostiles . | . . . . . Parts Fried . | . . . . . Impact Corruptions . | . . . . . Robots Melted . | . . . . . Combat Hostiles . | . . . . . Parts Melted . | . . . . . Heat Transferred . | . . . . . Parts Sabotaged . | . . . . . Parts Stolen . | . . . . . Parts Stripped . | . . . . . Power Chain Reactions . | . . . . . Missiles Intercepted . | . . . . . Alert | -11 -10 -10 -10 -9 ------- Run | Scr Mat Min Exi Min Peak Influence 246 | . 246 116 . 90 Initial 46 | . . 46 . . Average 82 | . 129 56 . 61 Maximum Alert Level 1 | . 1 . . . Low Security (%) 93 | 100 82 100 . 100 Level 1 6 | . 17 . . . Level 2 . | . . . . . Level 3 . | . . . . . Level 4 . | . . . . . Level 5 . | . . . . . High Security . | . . . . . Max Security . | . . . . . Squads Dispatched 5 | . 5 . . . Investigation 2 | . 2 . . . Extermination . | . . . . . Reinforcement 3 | . 3 . . . Assault . | . . . . . Garrison . | . . . . . Intercept . | . . . . . Construction Impeded . | . . . . . Haulers Reinforced . | . . . . . Stealth | -11 -10 -10 -10 -9 --------- Run | Scr Mat Min Exi Min Distress Signals 1 | . 1 . . . Communications Jammed . | . . . . . Distress Signals . | . . . . . Times Spotted 66 | . 30 7 . 29 Peak Tracking Total 12 | . 4 3 . 12 Tactical Retreats . | . . . . . Traps | -11 -10 -10 -10 -9 ------- Run | Scr Mat Min Exi Min Traps Triggered 3 | . 3 . . . Indirectly . | . . . . . Trap Hack Attempts . | . . . . . Triggered . | . . . . . Disarmed . | . . . . . Reprogrammed . | . . . . . Reused . | . . . . . Traps Extracted . | . . . . . Installed . | . . . . . Triggered . | . . . . . Machines | -11 -10 -10 -10 -9 ---------- Run | Scr Mat Min Exi Min Machines Disabled 1 | . . 1 . . Max in Single Turn . | . . . . . Machines Sabotaged . | . . . . . Garrisons Compromised . | . . . . . Overloaded Fab Kills . | . . . . . Fab Network Shutdowns . | . . . . . Hacking | -11 -10 -10 -10 -9 --------- Run | Scr Mat Min Exi Min Machines Accessed 8 | . 2 2 4 . Terminals 3 | . 2 1 . . Fabricators . | . . . . . Repair Stations . | . . . . . Recycling Units . | . . . . . Scanalyzers . | . . . . . Garrison Access . | . . . . . Total Hacks 13 | . 4 5 4 . Successful 11 | . 4 3 4 . Failed 2 | . . 2 . . Catastrophic 1 | . . 1 . . Database Lockouts . | . . . . . Manual 4 | . 3 1 . . Terminals 8 | . 4 4 . . Fabricators . | . . . . . Repair Stations . | . . . . . Recycling Units . | . . . . . Scanalyzers . | . . . . . Garrison Access . | . . . . . Terminal Hacks 8 | . 2 2 4 . Record 4 | . . . 4 . Open Door 1 | . . 1 . . Zone Layout 3 | . 2 1 . . Fabricator Hacks . | . . . . . Repair Station Hacks . | . . . . . Recycling Unit Hacks . | . . . . . Scanalyzer . | . . . . . Garrison Access Hacks . | . . . . . Unauthorized Hacks 3 | . 2 1 . . Terminals 3 | . 2 1 . . Botnet 3 | . 2 1 . . Fabricators . | . . . . . Repair Stations . | . . . . . Recycling Units . | . . . . . Scanalyzers . | . . . . . Garrison Access . | . . . . . Data Cores Recovered . | . . . . . Used . | . . . . . Hacking Detections 2 | . 1 1 . . Full Trace Events . | . . . . . Feedback Events . | . . . . . Feedback Blocked . | . . . . . Robot Schematics Acquired . | . . . . . Robots Built . | . . . . . Matter . | . . . . . Time . | . . . . . Total Robot Build Rating . | . . . . . Part Schematics Acquired . | . . . . . Parts Built . | . . . . . Matter . | . . . . . Time . | . . . . . Total Part Build Rating . | . . . . . Parts Repaired . | . . . . . Time . | . . . . . Parts Recycled . | . . . . . Recycled Matter . | . . . . . Retrieved Matter . | . . . . . Retrieved Components . | . . . . . Parts Scanalyzed . | . . . . . Part Schematics Acquired . | . . . . . Parts Damaged . | . . . . . Bothacking | -11 -10 -10 -10 -9 ------------ Run | Scr Mat Min Exi Min Used RIF Installer . | . . . . . Robots Hacked . | . . . . . Non-combat . | . . . . . Combat . | . . . . . Robot Hacks Applied . | . . . . . Relay Couplers Released . | . . . . . Robots Rewired . | . . . . . Allies Hacked . | . . . . . Hacks Repelled . | . . . . . Allies | -11 -10 -10 -10 -9 -------- Run | Scr Mat Min Exi Min Total Allies 3 | . . 1 . 2 Largest Group 2 | . . 1 . 2 Highest-Rated Group 43 | . . 31 . 43 Highest-Rated Ally 31 | . . 31 . 31 Total Orders . | . . . . . Ally Attacks 17 | . . 6 . 11 Total Damage 271 | . . 85 . 186 Kills 3 | . . . . 3 Allies Corrupted . | . . . . . Allies Melted . | . . . . . Intel | -11 -10 -10 -10 -9 ------- Run | Scr Mat Min Exi Min Robot Analysis Total . | . . . . . Derelict Logs Recovered 4 | . . 2 . 2 Drone Launches . | . . . . . Drone Recoveries . | . . . . . Exploration | -11 -10 -10 -10 -9 ------------- Run | Scr Mat Min Exi Min Turns Passed 3670 | 78 1082 1229 704 577 Spaces Moved 2007 | 44 542 716 439 266 Core 5 | 5 . . . . Treads 2002 | 39 542 716 439 266 Legs . | . . . . . Wheels . | . . . . . Hover . | . . . . . Flight . | . . . . . Fastest Speed 50 | 50 160 160 160 160 Average Speed 159 | 150 160 160 160 160 Slowest Speed 180 | 160 160 180 160 180 Overloaded Moves . | . . . . . Propulsion Burnouts . | . . . . . Robots Hopped . | . . . . . Cave-ins Triggered . | . . . . . Exploration Rate (%) 66 | 5 77 98 92 61 Regions Visited 4 Branch Regions 3 Pre-discovered Areas . | . . . . . Known Exits Taken 1 | . . 1 . . Unknown Exits Taken 3 | 1 1 . 1 . Scrap Searched 2 | . . 1 . 1 Spaces Dug . | . . . . . Terrain Destroyed 87 | . . 41 . 46 Melee . | . . . . . Projectile . | . . . . . AOE 87 | . . 41 . 46 Terrain Rammed . | . . . . . Walls Destroyed . | . . . . . Machines Disabled . | . . . . . Actions | -11 -10 -10 -10 -9 --------- Run | Scr Mat Min Exi Min Total 2284 | 53 673 758 442 358 Wait 61 | . 24 1 . 36 Move 2003 | 43 541 715 438 266 Hop . | . . . . . Pick Up 28 | 4 19 3 1 1 Fast Attach 12 | 6 5 1 . . Attach 6 | . . . . 6 Detach 2 | . 2 . . . Swap 18 | . 9 3 1 5 Drop 25 | . 19 4 2 . Fire 112 | . 48 24 . 40 Melee . | . . . . . Ram . | . . . . . Kick . | . . . . . Crush 17 | . 6 7 . 4 Escape Stasis . | . . . . . Rewire . | . . . . . Trap . | . . . . . Miscellaneous . | . . . . . Route ------- -11/Scrapyard -10/Materials (discovered 4 exits: [*Mat x3] / *Min) -10/Mines (discovered 3 exits: [*Mat x2] / *Exi) -10/Exiles -9/Mines (discovered 1 exit: Mat) History --------- Turn | Location | Event 50 | -11/Scrapyard | Discovered new exit (range 16) 79 | -11/Scrapyard | Entered Materials 87 | -10/Materials | Discovered new exit (range 14) 306 | -10/Materials | Build established: Mutant 526 | -10/Materials | Discovered new exit (range 12) 681 | -10/Materials | Discovered new exit (range 10) 925 | -10/Materials | Discovered new exit (range 10) 1161 | -10/Materials | Entered Mines 1255 | -10/Mines | Discovered new exit (range 5) 1312 | -10/Mines | Learned Materials terminal intel 1429 | -10/Mines | Received a Mining Laser from a helpful Derelict 1648 | -10/Mines | Discovered new exit (range 12) 1756 | -10/Mines | Deemed a non-threat by the Exiles lab entrance 1827 | -10/Mines | Found the Drone Emporium 1835 | -10/Mines | Found Prototype Device 2132 | -10/Mines | Identified exit to Exiles 2390 | -10/Mines | Entered Exiles 2390 | -10/Exiles | Found Exiles lab abandoned 3081 | -10/Exiles | Discovered new exit (range 10) 3094 | -10/Exiles | Entered Mines 3096 | -9/Mines | Core integrity fell below 50% 3136 | -9/Mines | Identified exit to Materials 3142 | -9/Mines | Lost 3 parts (1n2w) 3209 | -9/Mines | Learned 2 Materials zone layouts 3353 | -9/Mines | Core integrity fell below 20% 3397 | -9/Mines | Lost 3 parts (1p1n1w) 3639 | -9/Mines | Assembled infested the area 3648 | -9/Mines | Received a Rocket Launcher from a helpful Derelict 3671 | -9/Mines | Destroyed by as-71797 with Assembled Blade Last Messages --------------- 03660_ as-87182 destroyed. 03660_ Destroyed Asb. Hover Unit. 03660_ as-81097 destroyed. 03660_ as-40394 destroyed. 03663_ Lgt. Nuclear Core destroyed. 03663_ as-85633 destroyed. 03663_ as-33320 destroyed. 03663_ as-11901 destroyed. 03663_ as-18427 destroyed. 03666_ The unstable cave ceiling collapses. 03666_ as-60134 destroyed. 03666_ as-11023 destroyed. 03666_ Destroyed Asb. Heavy Rifle. 03666_ as-03618 destroyed. 03669_ Destroyed Asb. Hover Unit. 03669_ as-40870 destroyed. 03669_ Destroyed Asb. Hover Unit. 03669_ as-17071 destroyed. 03669_ Destroyed Asb. Hover Unit. 03671_ Grenade Launcher destroyed. Map ----- +----------------------------------------------------+ | ???????????????????## ##???????????????# #??????? | | ????????????????????####???????????###### #??????? | | ???????????????????????????????????# #??????? | | ???????????????????????????????????# ######??????? | | ???????????????????????????????????# #???????????? | | ???????????????????????????????????# #???????????? | | ???????????????????????????????????# #???????????? | | ???????????????????????????????????#%#???????????? | | ???????????????????????????????????#!#???????????? | | ?????????????????????????????#######%#???????????? | | ?????????????????????????????# =%%%#???????????? | | ?????????????????????????????# #######???????????? | | ???????????????????????????### #?????????????????? | | ??????????????????????????## ####??????????????? | | ??????????????????????????# ##?????????????? | | ??????????????????????????# #?????????????? | | ?????????????????#????????## ####??????????? | | ?????????????##### ????###### #??????????? | | ???????????? ??## ##### ##### #??????????? | | ???????????? #?# #??# #?????#??????????? | | ???????????? ## ##?#%#????????????????? | | ??????????? # ###%#????????????????? | | ???